[Event "Titled Tuesday Blitz April 4 Late 2023"]
[White "Fiorito, Joaquin"]
[Black "Lopez Del Alamo, Antonio"]
[WhiteFideId "180173"]
[BlackFideId "2227339"]
[WhiteElo "2157"]
[BlackElo "2175"]
[Result "1-0"]
[Round "05"]
[TimeControl "180+2"]
[Date "2023.04.04"]
[WhiteClock "0:00:15"]
[BlackClock "0:00:06"]

1. d4 {[%clk 0:03:00]}  Nf6 {[%clk 0:02:57]} 2. c4 {[%clk 0:03:01]}  g6 {[%clk 0:02:57]} 3. Nc3 {[%clk 0:03:01]}  Bg7 {[%clk 0:02:58]} 4. e4 {[%clk 0:03:01]}  d6 {[%clk 0:02:58]} 5. Nf3 {[%clk 0:03:02]}  O-O {[%clk 0:02:59]} 6. Be2 {[%clk 0:03:02]}  e5 {[%clk 0:02:59]} 7. d5 {[%clk 0:03:03]}  a5 {[%clk 0:02:59]} 8. Bg5 {[%clk 0:03:02]}  h6 {[%clk 0:02:54]} 9. Bh4 {[%clk 0:03:03]}  Na6 {[%clk 0:02:54]} 10. Nd2 {[%clk 0:03:02]}  Qe8 {[%clk 0:02:53]} 11. f3 {[%clk 0:03:01]}  Bd7 {[%clk 0:02:50]} 12. O-O {[%clk 0:03:00]}  Nh5 {[%clk 0:02:44]} 13. Rb1 {[%clk 0:02:54]}  f5 {[%clk 0:02:43]} 14. Bf2 {[%clk 0:02:49]}  Nf4 {[%clk 0:02:38]} 15. b3 {[%clk 0:02:44]}  h5 {[%clk 0:02:32]} 16. a3 {[%clk 0:02:41]}  Qe7 {[%clk 0:02:29]} 17. Kh1 {[%clk 0:02:35]}  h4 {[%clk 0:02:26]} 18. b4 {[%clk 0:02:32]}  axb4 {[%clk 0:02:24]} 19. axb4 {[%clk 0:02:32]}  Qg5 {[%clk 0:02:19]} 20. Rg1 {[%clk 0:02:30]}  Nh5 {[%clk 0:02:18]} 21. Re1 {[%clk 0:02:05]}  Ng3+ {[%clk 0:02:03]} 22. Bxg3 {[%clk 0:01:57]}  hxg3 {[%clk 0:02:02]} 23. h3 {[%clk 0:01:58]}  Bh6 {[%clk 0:01:41]} 24. Nf1 {[%clk 0:01:49]}  Qh4 {[%clk 0:01:36]} 25. Kg1 {[%clk 0:01:36]}  fxe4 {[%clk 0:01:08]} 26. Nxe4 {[%clk 0:01:34]}  Bxh3 {[%clk 0:01:09]} 27. gxh3 {[%clk 0:01:27]}  Qxh3 {[%clk 0:01:10]} 28. Nexg3 {[%clk 0:00:50]}  Be3+ {[%clk 0:00:53]} 29. Nxe3 {[%clk 0:00:48]}  Qxg3+ {[%clk 0:00:52]} 30. Ng2 {[%clk 0:00:49]}  Rf5 {[%clk 0:00:42]} 31. Qd2 {[%clk 0:00:31]}  Rh5 {[%clk 0:00:32]} 32. Bd1 {[%clk 0:00:30]}  Rf8 {[%clk 0:00:25]} 33. Re4 {[%clk 0:00:26]}  Rf4 {[%clk 0:00:19]} 34. Rxf4 {[%clk 0:00:20]}  exf4 {[%clk 0:00:20]} 35. Qxf4 {[%clk 0:00:20]}  Qh3 {[%clk 0:00:16]} 36. Bc2 {[%clk 0:00:16]}  Nb8 {[%clk 0:00:11]} 37. Qg4 {[%clk 0:00:14]}  Qxg4 {[%clk 0:00:07]} 38. fxg4 {[%clk 0:00:14]}  Rg5 {[%clk 0:00:08]} 39. Ne3 {[%clk 0:00:15]}  Nd7 {[%clk 0:00:09]} 40. Kg2 {[%clk 0:00:13]}  Ne5 {[%clk 0:00:09]} 41. Kg3 {[%clk 0:00:14]}  Kg7 {[%clk 0:00:10]} 42. Rf1 {[%clk 0:00:13]}  Nf7 {[%clk 0:00:08]} 43. Bd3 {[%clk 0:00:07]}  Re5 {[%clk 0:00:08]} 44. Ng2 {[%clk 0:00:07]}  Ng5 {[%clk 0:00:08]} 45. Re1 {[%clk 0:00:07]}  Rxe1 {[%clk 0:00:05]} 46. Nxe1 {[%clk 0:00:08]}  Kf6 {[%clk 0:00:05]} 47. Nf3 {[%clk 0:00:08]}  Nf7 {[%clk 0:00:04]} 48. Kf4 {[%clk 0:00:09]}  g5+ {[%clk 0:00:04]} 49. Ke4 {[%clk 0:00:09]}  Nh6 {[%clk 0:00:03]} 50. Nh2 {[%clk 0:00:09]}  Nf7 {[%clk 0:00:03]} 51. Kd4 {[%clk 0:00:08]}  Ne5 {[%clk 0:00:03]} 52. Bf5 {[%clk 0:00:09]}  Ke7 {[%clk 0:00:02]} 53. c5 {[%clk 0:00:09]}  b6 {[%clk 0:00:02]} 54. cxb6 {[%clk 0:00:08]}  cxb6 {[%clk 0:00:03]} 55. Nf1 {[%clk 0:00:09]}  Kf6 {[%clk 0:00:03]} 56. Ne3 {[%clk 0:00:09]}  Nf3+ {[%clk 0:00:03]} 57. Ke4 {[%clk 0:00:09]}  Nd2+ {[%clk 0:00:03]} 58. Kd3 {[%clk 0:00:09]}  Nf3 {[%clk 0:00:04]} 59. Nc4 {[%clk 0:00:09]}  Ne5+ {[%clk 0:00:03]} 60. Nxe5 {[%clk 0:00:08]}  Kxe5 {[%clk 0:00:04]} 61. Ke3 {[%clk 0:00:09]}  Kxd5 {[%clk 0:00:02]} 62. Kd3 {[%clk 0:00:09]}  Ke5 {[%clk 0:00:02]} 63. Kc3 {[%clk 0:00:10]}  d5 {[%clk 0:00:02]} 64. Kd3 {[%clk 0:00:10]}  b5 {[%clk 0:00:03]} 65. Kc3 {[%clk 0:00:11]}  d4+ {[%clk 0:00:03]} 66. Kd3 {[%clk 0:00:12]}  Kd5 {[%clk 0:00:03]} 67. Be4+ {[%clk 0:00:11]}  Ke5 {[%clk 0:00:03]} 68. Bf3 {[%clk 0:00:12]}  Kf4 {[%clk 0:00:04]} 69. Bd1 {[%clk 0:00:12]}  Ke5 {[%clk 0:00:04]} 70. Bb3 {[%clk 0:00:12]}  Kf4 {[%clk 0:00:04]} 71. Kxd4 {[%clk 0:00:12]}  Kxg4 {[%clk 0:00:04]} 72. Kc5 {[%clk 0:00:13]}  Kf3 {[%clk 0:00:05]} 73. Kxb5 {[%clk 0:00:14]}  Kf2 {[%clk 0:00:05]} 74. Bd5 {[%clk 0:00:14]}  g4 {[%clk 0:00:06]} 75. Kc5 {[%clk 0:00:15]} 1-0


[Site "https://www.chess.com"]

[Event "Titled Tuesday Blitz April 4 Late 2023"]
[White "McNeill, Gordon"]
[Black "Bruedigam, Martin"]
[WhiteFideId "30920760"]
[BlackFideId "24608033"]
[WhiteElo "2103"]
[BlackElo "2331"]
[Result "0-1"]
[Round "05"]
[TimeControl "180+2"]
[Date "2023.04.04"]
[WhiteClock "0:00:08"]
[BlackClock "0:00:33"]

1. e4 {[%clk 0:03:00]}  c6 {[%clk 0:02:59]} 2. Nf3 {[%clk 0:03:00]}  d5 {[%clk 0:02:59]} 3. Nc3 {[%clk 0:03:00]}  Bg4 {[%clk 0:02:57]} 4. h3 {[%clk 0:02:59]}  Bxf3 {[%clk 0:02:57]} 5. Qxf3 {[%clk 0:03:00]}  e6 {[%clk 0:02:56]} 6. d4 {[%clk 0:03:00]}  Nd7 {[%clk 0:02:55]} 7. Bd3 {[%clk 0:02:58]}  dxe4 {[%clk 0:02:55]} 8. Nxe4 {[%clk 0:02:57]}  Ngf6 {[%clk 0:02:55]} 9. O-O {[%clk 0:02:44]}  Be7 {[%clk 0:02:55]} 10. b3 {[%clk 0:02:40]}  O-O {[%clk 0:02:52]} 11. Bb2 {[%clk 0:02:40]}  Nxe4 {[%clk 0:02:50]} 12. Bxe4 {[%clk 0:02:39]}  Bf6 {[%clk 0:02:47]} 13. Rad1 {[%clk 0:02:37]}  Qa5 {[%clk 0:02:42]} 14. a4 {[%clk 0:02:34]}  Rfd8 {[%clk 0:02:40]} 15. Rfe1 {[%clk 0:02:10]}  g6 {[%clk 0:02:40]} 16. c4 {[%clk 0:02:04]}  Bg7 {[%clk 0:02:38]} 17. Bc2 {[%clk 0:01:56]}  Rac8 {[%clk 0:02:13]} 18. Bc3 {[%clk 0:01:55]}  Qc7 {[%clk 0:02:12]} 19. Ba1 {[%clk 0:01:50]}  a5 {[%clk 0:02:10]} 20. h4 {[%clk 0:01:44]}  Nf8 {[%clk 0:02:01]} 21. h5 {[%clk 0:01:40]}  Rd7 {[%clk 0:02:00]} 22. hxg6 {[%clk 0:01:39]}  hxg6 {[%clk 0:02:01]} 23. Be4 {[%clk 0:01:31]}  Rcd8 {[%clk 0:02:00]} 24. d5 {[%clk 0:01:26]}  Bxa1 {[%clk 0:01:53]} 25. Rxa1 {[%clk 0:01:17]}  cxd5 {[%clk 0:01:52]} 26. cxd5 {[%clk 0:01:17]}  exd5 {[%clk 0:01:52]} 27. Bd3 {[%clk 0:01:11]}  Re7 {[%clk 0:01:43]} 28. Rac1 {[%clk 0:01:03]}  Rxe1+ {[%clk 0:01:42]} 29. Rxe1 {[%clk 0:01:04]}  Qd6 {[%clk 0:01:39]} 30. Qe3 {[%clk 0:00:57]}  b6 {[%clk 0:01:31]} 31. Qd4 {[%clk 0:00:54]}  Qc5 {[%clk 0:01:12]} 32. Qe5 {[%clk 0:00:48]}  Rd6 {[%clk 0:01:09]} 33. Qe7 {[%clk 0:00:40]}  Re6 {[%clk 0:01:08]} 34. Rxe6 {[%clk 0:00:38]}  Nxe6 {[%clk 0:01:07]} 35. Qd7 {[%clk 0:00:28]}  Kg7 {[%clk 0:01:07]} 36. g3 {[%clk 0:00:23]}  Nd4 {[%clk 0:01:01]} 37. Kg2 {[%clk 0:00:21]}  Nxb3 {[%clk 0:01:01]} 38. Qe8 {[%clk 0:00:12]}  Qd6 {[%clk 0:01:00]} 39. Bb5 {[%clk 0:00:11]}  Nc5 {[%clk 0:00:57]} 40. Qc8 {[%clk 0:00:10]}  d4 {[%clk 0:00:55]} 41. Bc4 {[%clk 0:00:08]}  Qd7 {[%clk 0:00:35]} 42. Qa6 {[%clk 0:00:08]}  Nxa6 {[%clk 0:00:33]} 0-1


[Site "https://www.chess.com"]

[Event "Titled Tuesday Blitz April 4 Late 2023"]
[White "Djordjevic, Dejan N"]
[Black "Vovk, Orest"]
[WhiteFideId "913316"]
[BlackFideId "14113490"]
[WhiteElo "2261"]
[BlackElo "2215"]
[Result "1-0"]
[Round "05"]
[TimeControl "180+2"]
[Date "2023.04.04"]
[WhiteClock "0:01:03"]
[BlackClock "0:00:16"]

1. e4 {[%clk 0:03:00]}  g5 {[%clk 0:02:55]} 2. d4 {[%clk 0:02:59]}  g4 {[%clk 0:02:54]} 3. c4 {[%clk 0:02:56]}  Bg7 {[%clk 0:02:54]} 4. Nc3 {[%clk 0:02:56]}  c5 {[%clk 0:02:53]} 5. Be3 {[%clk 0:02:55]}  h5 {[%clk 0:02:52]} 6. h3 {[%clk 0:02:52]}  Nc6 {[%clk 0:02:50]} 7. d5 {[%clk 0:02:47]}  Nd4 {[%clk 0:02:50]} 8. hxg4 {[%clk 0:02:43]}  hxg4 {[%clk 0:02:49]} 9. Rxh8 {[%clk 0:02:42]}  Bxh8 {[%clk 0:02:50]} 10. Bxd4 {[%clk 0:02:40]}  Bxd4 {[%clk 0:02:45]} 11. Qxg4 {[%clk 0:02:40]}  Nf6 {[%clk 0:02:29]} 12. Qh4 {[%clk 0:02:39]}  Bxc3+ {[%clk 0:02:27]} 13. bxc3 {[%clk 0:02:39]}  d6 {[%clk 0:02:25]} 14. Qh8+ {[%clk 0:02:31]}  Kd7 {[%clk 0:02:24]} 15. Qxd8+ {[%clk 0:02:31]}  Kxd8 {[%clk 0:02:25]} 16. Bd3 {[%clk 0:02:29]}  b6 {[%clk 0:02:21]} 17. f4 {[%clk 0:02:22]}  Bg4 {[%clk 0:02:20]} 18. Kf2 {[%clk 0:02:20]}  Kc7 {[%clk 0:02:17]} 19. a4 {[%clk 0:02:14]}  a5 {[%clk 0:02:12]} 20. e5 {[%clk 0:02:03]}  dxe5 {[%clk 0:02:10]} 21. fxe5 {[%clk 0:02:03]}  Nd7 {[%clk 0:02:10]} 22. Re1 {[%clk 0:02:02]}  f6 {[%clk 0:02:02]} 23. exf6 {[%clk 0:01:57]}  exf6 {[%clk 0:02:02]} 24. Nf3 {[%clk 0:01:50]}  Bxf3 {[%clk 0:02:00]} 25. gxf3 {[%clk 0:01:50]}  Ne5 {[%clk 0:02:00]} 26. Be2 {[%clk 0:01:49]}  Rh8 {[%clk 0:01:49]} 27. Rg1 {[%clk 0:01:48]}  Rh2+ {[%clk 0:01:45]} 28. Rg2 {[%clk 0:01:46]}  Rxg2+ {[%clk 0:01:45]} 29. Kxg2 {[%clk 0:01:46]}  Kd6 {[%clk 0:01:43]} 30. f4 {[%clk 0:01:46]}  Ng6 {[%clk 0:01:38]} 31. Kg3 {[%clk 0:01:45]}  Ne7 {[%clk 0:01:33]} 32. Bg4 {[%clk 0:01:44]}  Nxd5 {[%clk 0:00:47]} 33. cxd5 {[%clk 0:01:43]}  Kxd5 {[%clk 0:00:48]} 34. Be2 {[%clk 0:01:36]}  Ke4 {[%clk 0:00:45]} 35. Kg4 {[%clk 0:01:28]}  Kd5 {[%clk 0:00:28]} 36. Kf5 {[%clk 0:01:26]}  c4 {[%clk 0:00:28]} 37. Kxf6 {[%clk 0:01:12]}  b5 {[%clk 0:00:28]} 38. axb5 {[%clk 0:01:12]}  a4 {[%clk 0:00:29]} 39. b6 {[%clk 0:01:11]}  a3 {[%clk 0:00:28]} 40. b7 {[%clk 0:01:10]}  a2 {[%clk 0:00:28]} 41. b8=Q {[%clk 0:01:10]}  a1=Q {[%clk 0:00:28]} 42. Qe5+ {[%clk 0:01:07]}  Kc6 {[%clk 0:00:28]} 43. Bxc4 {[%clk 0:01:05]}  Qb2 {[%clk 0:00:16]} 44. Qb5+ {[%clk 0:01:03]} 1-0


[Site "https://www.chess.com"]

[Event "Titled Tuesday Blitz April 4 Late 2023"]
[White "Krasteva, Beloslava"]
[Black "Mei, Austin"]
[WhiteFideId "2922029"]
[BlackFideId "30948479"]
[WhiteElo "2187"]
[BlackElo "2125"]
[Result "1-0"]
[Round "05"]
[TimeControl "180+2"]
[Date "2023.04.04"]
[WhiteClock "0:00:09"]
[BlackClock "0:01:16"]

1. d4 {[%clk 0:03:00]}  Nf6 {[%clk 0:02:55]} 2. Bg5 {[%clk 0:02:59]}  c5 {[%clk 0:02:48]} 3. Bxf6 {[%clk 0:02:51]}  gxf6 {[%clk 0:02:47]} 4. d5 {[%clk 0:02:50]}  Qb6 {[%clk 0:02:46]} 5. Nd2 {[%clk 0:02:49]}  Qxb2 {[%clk 0:02:45]} 6. e4 {[%clk 0:02:42]}  f5 {[%clk 0:02:39]} 7. Rb1 {[%clk 0:02:28]}  Qc3 {[%clk 0:02:32]} 8. Ne2 {[%clk 0:02:19]}  Qa5 {[%clk 0:02:31]} 9. exf5 {[%clk 0:01:47]}  d6 {[%clk 0:02:31]} 10. Ng3 {[%clk 0:01:43]}  Bg7 {[%clk 0:02:25]} 11. Bb5+ {[%clk 0:01:38]}  Nd7 {[%clk 0:02:23]} 12. O-O {[%clk 0:01:33]}  a6 {[%clk 0:02:20]} 13. Nc4 {[%clk 0:01:28]}  Qc7 {[%clk 0:02:20]} 14. Bxd7+ {[%clk 0:01:24]}  Bxd7 {[%clk 0:02:21]} 15. Nb6 {[%clk 0:01:24]}  Rb8 {[%clk 0:02:18]} 16. Nxd7 {[%clk 0:01:21]}  Qxd7 {[%clk 0:02:16]} 17. Qg4 {[%clk 0:01:20]}  Bd4 {[%clk 0:02:13]} 18. Rfe1 {[%clk 0:01:12]}  Kd8 {[%clk 0:02:13]} 19. Qh5 {[%clk 0:01:04]}  Rf8 {[%clk 0:01:58]} 20. Ne4 {[%clk 0:00:58]}  Kc7 {[%clk 0:01:54]} 21. Qxh7 {[%clk 0:00:50]}  Be5 {[%clk 0:01:45]} 22. g3 {[%clk 0:00:46]}  e6 {[%clk 0:01:36]} 23. fxe6 {[%clk 0:00:40]}  fxe6 {[%clk 0:01:37]} 24. Qxd7+ {[%clk 0:00:39]}  Kxd7 {[%clk 0:01:38]} 25. dxe6+ {[%clk 0:00:38]}  Kxe6 {[%clk 0:01:39]} 26. Nxc5+ {[%clk 0:00:33]}  dxc5 {[%clk 0:01:37]} 27. f4 {[%clk 0:00:33]}  Rf5 {[%clk 0:01:37]} 28. Rb6+ {[%clk 0:00:29]}  Kd5 {[%clk 0:01:35]} 29. fxe5 {[%clk 0:00:24]}  c4 {[%clk 0:01:33]} 30. e6 {[%clk 0:00:22]}  Kc5 {[%clk 0:01:33]} 31. Rbb1 {[%clk 0:00:18]}  Re8 {[%clk 0:01:30]} 32. Rxb7 {[%clk 0:00:18]}  Kd4 {[%clk 0:01:28]} 33. Rd7+ {[%clk 0:00:16]}  Kc3 {[%clk 0:01:29]} 34. e7 {[%clk 0:00:16]}  Rf7 {[%clk 0:01:24]} 35. Re2 {[%clk 0:00:15]}  Kb2 {[%clk 0:01:23]} 36. a4 {[%clk 0:00:14]}  Ka3 {[%clk 0:01:22]} 37. a5 {[%clk 0:00:13]}  Kb4 {[%clk 0:01:23]} 38. Re5 {[%clk 0:00:11]}  Kc3 {[%clk 0:01:22]} 39. Re2 {[%clk 0:00:11]}  Kb4 {[%clk 0:01:22]} 40. Rb7+ {[%clk 0:00:10]}  Kxa5 {[%clk 0:01:22]} 41. c3 {[%clk 0:00:10]}  Ka4 {[%clk 0:01:16]} 42. Ra2# {[%clk 0:00:09]} 1-0


[Site "https://www.chess.com"]

[Event "Titled Tuesday Blitz April 4 Late 2023"]
[White "Goffredo_Fofi"]
[Black "Manu_ChessExcelsior"]
[WhiteElo "2510"]
[BlackElo "2155"]
[Result "1-0"]
[Round "05"]
[TimeControl "180+2"]
[Date "2023.04.04"]
[WhiteClock "0:01:16"]
[BlackClock "0:00:01"]

1. d4 {[%clk 0:03:00]}  d5 {[%clk 0:02:58]} 2. Nf3 {[%clk 0:03:00]}  Nf6 {[%clk 0:02:55]} 3. Bf4 {[%clk 0:03:00]}  c5 {[%clk 0:02:50]} 4. e3 {[%clk 0:03:00]}  Nc6 {[%clk 0:02:50]} 5. Nbd2 {[%clk 0:03:00]}  Bf5 {[%clk 0:02:40]} 6. c3 {[%clk 0:02:59]}  e6 {[%clk 0:02:41]} 7. Qb3 {[%clk 0:02:57]}  Qb6 {[%clk 0:02:32]} 8. Qxb6 {[%clk 0:02:56]}  axb6 {[%clk 0:02:32]} 9. Bb5 {[%clk 0:02:56]}  Nd7 {[%clk 0:02:12]} 10. Nh4 {[%clk 0:02:52]}  Bg6 {[%clk 0:02:10]} 11. h3 {[%clk 0:02:39]}  f6 {[%clk 0:02:05]} 12. Nxg6 {[%clk 0:02:39]}  hxg6 {[%clk 0:02:04]} 13. O-O {[%clk 0:02:22]}  g5 {[%clk 0:02:04]} 14. Bg3 {[%clk 0:02:20]}  c4 {[%clk 0:01:42]} 15. e4 {[%clk 0:02:18]}  Kf7 {[%clk 0:01:24]} 16. exd5 {[%clk 0:02:15]}  exd5 {[%clk 0:01:23]} 17. b3 {[%clk 0:02:07]}  cxb3 {[%clk 0:01:08]} 18. axb3 {[%clk 0:02:08]}  Be7 {[%clk 0:01:05]} 19. c4 {[%clk 0:01:36]}  Rxa1 {[%clk 0:00:12]} 20. Rxa1 {[%clk 0:01:35]}  Rd8 {[%clk 0:00:12]} 21. Nf3 {[%clk 0:01:23]}  Nb4 {[%clk 0:00:10]} 22. Ra7 {[%clk 0:01:18]}  g4 {[%clk 0:00:03]} 23. hxg4 {[%clk 0:01:17]}  Kg6 {[%clk 0:00:01]} 24. Rxb7 {[%clk 0:01:16]} 1-0


[Site "https://www.chess.com"]

[Event "Titled Tuesday Blitz April 4 Late 2023"]
[White "Aggelis, Nikolaos"]
[Black "Porat, Tori"]
[WhiteFideId "4213220"]
[BlackFideId "30982626"]
[WhiteElo "2189"]
[BlackElo "1752"]
[Result "1-0"]
[Round "05"]
[TimeControl "180+2"]
[Date "2023.04.04"]
[WhiteClock "0:00:23"]
[BlackClock "0:01:02"]

1. c4 {[%clk 0:02:29]}  e5 {[%clk 0:02:58]} 2. Nc3 {[%clk 0:02:22]}  f5 {[%clk 0:02:54]} 3. g3 {[%clk 0:02:21]}  Nf6 {[%clk 0:02:54]} 4. Bg2 {[%clk 0:02:22]}  Be7 {[%clk 0:02:50]} 5. e3 {[%clk 0:02:23]}  O-O {[%clk 0:02:50]} 6. Nge2 {[%clk 0:02:23]}  c6 {[%clk 0:02:49]} 7. d3 {[%clk 0:02:18]}  d5 {[%clk 0:02:49]} 8. cxd5 {[%clk 0:02:13]}  cxd5 {[%clk 0:02:49]} 9. e4 {[%clk 0:02:13]}  fxe4 {[%clk 0:02:48]} 10. dxe4 {[%clk 0:02:14]}  d4 {[%clk 0:02:48]} 11. Nd5 {[%clk 0:02:14]}  Nxd5 {[%clk 0:02:41]} 12. exd5 {[%clk 0:02:15]}  Bb4+ {[%clk 0:02:34]} 13. Bd2 {[%clk 0:02:14]}  Bc5 {[%clk 0:02:31]} 14. O-O {[%clk 0:01:53]}  Bg4 {[%clk 0:02:26]} 15. Qe1 {[%clk 0:01:42]}  Bf3 {[%clk 0:02:24]} 16. Bxf3 {[%clk 0:01:21]}  Rxf3 {[%clk 0:02:22]} 17. Nf4 {[%clk 0:01:22]}  exf4 {[%clk 0:02:12]} 18. Qe4 {[%clk 0:01:22]}  Re3 {[%clk 0:01:54]} 19. fxe3 {[%clk 0:01:17]}  dxe3 {[%clk 0:01:52]} 20. Bxe3 {[%clk 0:00:55]}  fxe3 {[%clk 0:01:47]} 21. Qe6+ {[%clk 0:00:55]}  Kh8 {[%clk 0:01:46]} 22. Rf7 {[%clk 0:00:49]}  Na6 {[%clk 0:01:37]} 23. Kg2 {[%clk 0:00:49]}  Nc7 {[%clk 0:01:36]} 24. Qd7 {[%clk 0:00:33]}  Nxd5 {[%clk 0:01:27]} 25. Rxg7 {[%clk 0:00:27]}  Bd4 {[%clk 0:01:06]} 26. Rxh7+ {[%clk 0:00:23]}  Kg8 {[%clk 0:01:02]} 27. Qf7# {[%clk 0:00:23]} 1-0


[Site "https://www.chess.com"]

[Event "Titled Tuesday Blitz April 4 Late 2023"]
[White "Melikhov, Evgeny V."]
[Black "Diaz Perez, Michel Alejandro"]
[WhiteFideId "4122046"]
[BlackFideId "3517179"]
[WhiteElo "2158"]
[BlackElo "2334"]
[Result "0-1"]
[Round "05"]
[TimeControl "180+2"]
[Date "2023.04.04"]
[WhiteClock "0:00:14"]
[BlackClock "0:00:52"]

1. d4 {[%clk 0:03:00]}  Nf6 {[%clk 0:02:59]} 2. c4 {[%clk 0:03:00]}  e6 {[%clk 0:02:57]} 3. Nc3 {[%clk 0:03:00]}  Bb4 {[%clk 0:02:56]} 4. Qc2 {[%clk 0:03:01]}  O-O {[%clk 0:02:54]} 5. e4 {[%clk 0:03:00]}  Bxc3+ {[%clk 0:02:52]} 6. bxc3 {[%clk 0:03:00]}  d6 {[%clk 0:02:52]} 7. e5 {[%clk 0:03:00]}  dxe5 {[%clk 0:02:51]} 8. dxe5 {[%clk 0:03:00]}  Nfd7 {[%clk 0:02:49]} 9. Nf3 {[%clk 0:03:00]}  Nc6 {[%clk 0:02:46]} 10. Bf4 {[%clk 0:03:00]}  Nc5 {[%clk 0:02:42]} 11. Rd1 {[%clk 0:02:48]}  Qe7 {[%clk 0:02:41]} 12. Be2 {[%clk 0:02:32]}  b6 {[%clk 0:02:39]} 13. O-O {[%clk 0:02:31]}  Ba6 {[%clk 0:02:38]} 14. Ng5 {[%clk 0:02:19]}  g6 {[%clk 0:02:37]} 15. Ne4 {[%clk 0:02:18]}  Nxe4 {[%clk 0:02:33]} 16. Qxe4 {[%clk 0:02:17]}  Na5 {[%clk 0:02:34]} 17. Bh6 {[%clk 0:02:04]}  Rfd8 {[%clk 0:02:33]} 18. Qf4 {[%clk 0:02:04]}  Rxd1 {[%clk 0:02:24]} 19. Rxd1 {[%clk 0:02:03]}  Rd8 {[%clk 0:02:24]} 20. Rxd8+ {[%clk 0:01:50]}  Qxd8 {[%clk 0:02:25]} 21. Bg5 {[%clk 0:01:48]}  Qf8 {[%clk 0:02:20]} 22. Bf6 {[%clk 0:01:45]}  h5 {[%clk 0:02:17]} 23. h4 {[%clk 0:01:18]}  Nb7 {[%clk 0:02:11]} 24. g4 {[%clk 0:01:11]}  hxg4 {[%clk 0:02:10]} 25. h5 {[%clk 0:01:06]}  Nc5 {[%clk 0:01:54]} 26. Bxg4 {[%clk 0:00:53]}  Bb7 {[%clk 0:01:36]} 27. f3 {[%clk 0:00:47]}  Nd3 {[%clk 0:01:16]} 28. Qg5 {[%clk 0:00:43]}  Qc5+ {[%clk 0:01:15]} 29. Kg2 {[%clk 0:00:35]}  Qf2+ {[%clk 0:01:14]} 30. Kh3 {[%clk 0:00:35]}  Bxf3 {[%clk 0:01:07]} 31. Bxe6 {[%clk 0:00:16]}  Bg2+ {[%clk 0:00:57]} 32. Qxg2 {[%clk 0:00:16]}  Nf4+ {[%clk 0:00:57]} 33. Kg4 {[%clk 0:00:16]}  Nxg2 {[%clk 0:00:53]} 34. hxg6 {[%clk 0:00:14]}  fxe6 {[%clk 0:00:52]} 0-1


[Site "https://www.chess.com"]

[Event "Titled Tuesday Blitz April 4 Late 2023"]
[White "Perez Rodriguez, Jennifer"]
[Black "Kilpatrick, Callum"]
[WhiteFideId "3507831"]
[BlackFideId "414425"]
[WhiteElo "2116"]
[BlackElo "2351"]
[Result "0-1"]
[Round "05"]
[TimeControl "180+2"]
[Date "2023.04.04"]
[WhiteClock "0:00:07"]
[BlackClock "0:00:09"]

1. e4 {[%clk 0:02:40]}  e5 {[%clk 0:02:57]} 2. Nf3 {[%clk 0:02:40]}  Nc6 {[%clk 0:02:57]} 3. d4 {[%clk 0:02:41]}  exd4 {[%clk 0:02:57]} 4. Nxd4 {[%clk 0:02:42]}  Bc5 {[%clk 0:02:57]} 5. Be3 {[%clk 0:02:40]}  Qf6 {[%clk 0:02:57]} 6. c3 {[%clk 0:02:39]}  Nge7 {[%clk 0:02:56]} 7. Bc4 {[%clk 0:02:34]}  Ne5 {[%clk 0:02:57]} 8. Be2 {[%clk 0:02:33]}  Qg6 {[%clk 0:02:57]} 9. O-O {[%clk 0:02:30]}  O-O {[%clk 0:02:46]} 10. Nd2 {[%clk 0:02:29]}  d5 {[%clk 0:02:41]} 11. Bh5 {[%clk 0:02:11]}  Qa6 {[%clk 0:02:39]} 12. f4 {[%clk 0:01:56]}  Nc4 {[%clk 0:02:18]} 13. Nxc4 {[%clk 0:01:55]}  dxc4 {[%clk 0:02:18]} 14. Bf3 {[%clk 0:01:51]}  Ng6 {[%clk 0:01:54]} 15. Qe2 {[%clk 0:01:42]}  Re8 {[%clk 0:01:52]} 16. b4 {[%clk 0:01:23]}  Bf8 {[%clk 0:01:35]} 17. Qd2 {[%clk 0:01:19]}  c5 {[%clk 0:01:31]} 18. bxc5 {[%clk 0:01:14]}  Bxc5 {[%clk 0:01:32]} 19. e5 {[%clk 0:01:14]}  Bd7 {[%clk 0:01:19]} 20. Rab1 {[%clk 0:01:12]}  Rab8 {[%clk 0:01:12]} 21. Bd5 {[%clk 0:01:00]}  Red8 {[%clk 0:01:06]} 22. Qe2 {[%clk 0:00:58]}  b5 {[%clk 0:01:04]} 23. Bd2 {[%clk 0:00:48]}  Bf5 {[%clk 0:00:50]} 24. Rbe1 {[%clk 0:00:43]}  Rxd5 {[%clk 0:00:48]} 25. Qf3 {[%clk 0:00:35]}  Rbd8 {[%clk 0:00:44]} 26. Be3 {[%clk 0:00:33]}  Bxd4 {[%clk 0:00:38]} 27. Bxd4 {[%clk 0:00:33]}  Bd3 {[%clk 0:00:29]} 28. Rf2 {[%clk 0:00:33]}  Nh4 {[%clk 0:00:20]} 29. Qg4 {[%clk 0:00:30]}  Nf5 {[%clk 0:00:20]} 30. Qh5 {[%clk 0:00:23]}  Nxd4 {[%clk 0:00:18]} 31. cxd4 {[%clk 0:00:23]}  Qg6 {[%clk 0:00:16]} 32. Qf3 {[%clk 0:00:21]}  Rxd4 {[%clk 0:00:12]} 33. f5 {[%clk 0:00:21]}  Qg4 {[%clk 0:00:12]} 34. Qb7 {[%clk 0:00:17]}  Re4 {[%clk 0:00:12]} 35. Rc1 {[%clk 0:00:11]}  Rxe5 {[%clk 0:00:11]} 36. f6 {[%clk 0:00:07]}  Rde8 {[%clk 0:00:10]} 37. fxg7 {[%clk 0:00:07]}  Re1+ {[%clk 0:00:09]} 0-1


[Site "https://www.chess.com"]

[Event "Titled Tuesday Blitz April 4 Late 2023"]
[White "Popov, Mikhail"]
[Black "Jarocka, Liwia"]
[WhiteFideId "4146182"]
[BlackFideId "21807558"]
[WhiteElo "2244"]
[BlackElo "2013"]
[Result "1-0"]
[Round "05"]
[TimeControl "180+2"]
[Date "2023.04.04"]
[WhiteClock "0:00:17"]
[BlackClock "0:00:48"]

1. d4 {[%clk 0:02:52]}  d6 {[%clk 0:02:58]} 2. Nf3 {[%clk 0:02:52]}  g6 {[%clk 0:02:59]} 3. Bg5 {[%clk 0:02:50]}  Bg7 {[%clk 0:03:00]} 4. c3 {[%clk 0:02:49]}  Nf6 {[%clk 0:03:00]} 5. Nbd2 {[%clk 0:02:47]}  O-O {[%clk 0:03:01]} 6. e4 {[%clk 0:02:46]}  Nbd7 {[%clk 0:03:02]} 7. Bc4 {[%clk 0:02:45]}  h6 {[%clk 0:02:59]} 8. Bh4 {[%clk 0:02:44]}  c5 {[%clk 0:02:59]} 9. O-O {[%clk 0:02:43]}  b6 {[%clk 0:02:49]} 10. e5 {[%clk 0:02:38]}  Ne8 {[%clk 0:02:49]} 11. e6 {[%clk 0:02:35]}  fxe6 {[%clk 0:02:47]} 12. Bxe6+ {[%clk 0:02:36]}  Kh7 {[%clk 0:02:46]} 13. Re1 {[%clk 0:02:34]}  Nef6 {[%clk 0:02:45]} 14. Qc2 {[%clk 0:02:32]}  Bb7 {[%clk 0:02:42]} 15. a4 {[%clk 0:02:07]}  cxd4 {[%clk 0:02:14]} 16. cxd4 {[%clk 0:02:06]}  Rc8 {[%clk 0:02:13]} 17. Qd3 {[%clk 0:02:03]}  Rc7 {[%clk 0:02:11]} 18. Rad1 {[%clk 0:01:59]}  Nb8 {[%clk 0:02:09]} 19. Ba2 {[%clk 0:01:59]}  Nc6 {[%clk 0:02:07]} 20. Bb1 {[%clk 0:01:59]}  Qe8 {[%clk 0:02:05]} 21. h3 {[%clk 0:01:35]}  Nb4 {[%clk 0:02:05]} 22. Qb3 {[%clk 0:01:33]}  a5 {[%clk 0:02:04]} 23. Bg3 {[%clk 0:01:27]}  Bd5 {[%clk 0:02:02]} 24. Qe3 {[%clk 0:01:26]}  Qxa4 {[%clk 0:01:55]} 25. Nh4 {[%clk 0:01:16]}  Bf7 {[%clk 0:01:54]} 26. Ne4 {[%clk 0:01:00]}  Nh5 {[%clk 0:01:47]} 27. Nxd6 {[%clk 0:00:45]}  exd6 {[%clk 0:01:35]} 28. Bxd6 {[%clk 0:00:46]}  Re8 {[%clk 0:01:34]} 29. Qf3 {[%clk 0:00:36]}  Rxe1+ {[%clk 0:01:34]} 30. Rxe1 {[%clk 0:00:37]}  Rd7 {[%clk 0:01:26]} 31. Nxg6 {[%clk 0:00:27]}  Rxd6 {[%clk 0:01:03]} 32. Qxf7 {[%clk 0:00:26]}  Nc2 {[%clk 0:00:58]} 33. Ne7 {[%clk 0:00:17]}  Rf6 {[%clk 0:00:48]} 34. Qg8# {[%clk 0:00:17]} 1-0


[Site "https://www.chess.com"]